bitfinex/quotes_ETHUSD_20220215
["timestamp","ask_amount","ask_price","bid_price","bid_amount"]
[1644939780168,0.84837901,3123.0,3122.9,0.80053]
[1644939780369,0.84837901,3123.0,3122.9,1.30684148]
[1644939780770,0.84837901,3123.0,3122.9,0.50631618]
[1644939784517,0.84837901,3123.0,3122.9,0.50902262]
[1644939785325,1.31037901,3123.0,3122.9,0.00270644]
[1644939785520,1.91951789,3123.0,3122.9,0.00270644]
[1644939785726,2.91951789,3123.0,3122.9,0.00270644]
[1644939787372,2.31037901,3123.0,3122.9,0.00270644]
[1644939787569,3.45534912,3123.0,3122.9,0.00270644]
[1644939788069,2.45534912,3123.0,3122.9,0.00270644]
[1644939788375,2.31037901,3123.0,3122.9,0.00270644]
[1644939788972,18.82,3122.7,3122.3,0.50657589]
[1644939789170,1.10567692,3122.1,3121.5,3.5]
[1644939789369,1.31037901,3122.0,3121.6,0.49473324]
[1644939789569,0.84837901,3121.9,3121.7,0.49473324]
[1644939789768,0.84837901,3121.9,3121.8,0.49473324]
[1644939789970,1.64937901,3121.9,3121.8,0.49473324]
[1644939790171,0.84837901,3121.9,3121.2,0.61084741]
[1644939790373,6.4360262,3122.6,3121.2,0.61084741]
[1644939790619,5.6352,3122.6,3121.2,0.61084741]
[1644939790819,0.0026801,3122.0,3121.6,0.128285]
[1644939791022,0.0026801,3122.0,3121.7,1.29556324]
[1644939791216,0.0026801,3122.0,3121.8,0.49473324]
[1644939791615,0.86242689,3122.4,3121.8,0.49473324]
[1644939791816,0.0026801,3122.1,3121.8,0.49473324]
[1644939792018,0.0026801,3122.1,3121.9,0.49473324]
[1644939792217,0.0026801,3122.1,3121.7,2.09621324]
[1644939792618,0.0026801,3122.1,3121.8,0.49473324]
[1644939792818,0.86256301,3122.4,3121.8,0.49473324]
[1644939793019,0.0026801,3122.1,3121.8,0.49473324]
[1644939793417,0.0026801,3122.1,3121.9,0.80072]
[1644939793624,0.0026801,3122.1,3122.0,0.49473324]
[1644939794019,0.86269474,3122.4,3122.0,0.49473324]
[1644939794268,0.0026801,3122.2,3122.0,0.49473324]
[1644939795269,0.86280223,3122.6,3122.0,0.49473324]
[1644939795468,0.00208139,3122.3,3122.0,0.49473324]
[1644939795670,0.00208139,3122.3,3122.1,0.80067]
[1644939795869,0.00057239,3122.3,3122.2,0.49473324]
[1644939796375,0.8627187,3122.6,3122.2,0.49473324]
[1644939796569,0.8627187,3122.6,3122.2,1.29538324]
[1644939796969,1.2077,3123.1,3122.3,2.09600324]
[1644939797170,0.86271888,3123.0,3122.4,0.49473324]
[1644939797370,0.86271888,3122.9,3122.5,0.80064]
[1644939797570,0.86271888,3122.9,3122.6,0.49473324]
[1644939797772,0.86271888,3122.9,3122.6,4.52118533]
[1644939798018,0.86271888,3122.8,3122.7,0.49473324]
[1644939798219,5.45690622,3123.3,3122.7,3.41728855]
[1644939798220,0.86271888,3123.2,3122.7,3.41728855]
[1644939798421,0.86271888,3123.2,3122.8,0.49473324]
[1644939798819,0.86271888,3123.2,3122.8,1.13508344]
[1644939799024,0.86271888,3123.2,3122.9,0.49473324]
[1644939799218,0.86271888,3123.2,3122.9,0.79473324]
[1644939799418,0.86271888,3123.2,3123.0,0.49473324]
[1644939799620,0.0141004,3123.3,3123.0,0.49473324]
[1644939799819,0.0141004,3123.3,3123.0,3.53623874]
[1644939800020,0.0141004,3123.3,3123.1,0.49473324]
[1644939800221,0.0141004,3123.3,3123.1,0.79473324]
[1644939800421,0.01677673,3123.3,3123.2,0.49473324]
[1644939800623,0.87970655,3123.3,3123.2,0.49473324]
[1644939801220,0.87703022,3123.3,3123.2,0.49473324]
[1644939806217,0.87703022,3123.3,3123.2,0.79473324]
[1644939806615,0.87703022,3123.3,3123.2,0.49473324]
[1644939807016,0.87703022,3123.3,3123.2,0.79473324]
[1644939807218,0.87703022,3123.3,3123.2,0.49473324]
[1644939815019,0.87703022,3123.3,3123.2,0.4968146]
[1644939818679,0.00267633,3123.4,3123.3,0.62120242]
[1644939818976,0.00267633,3123.4,3123.3,1.11593566]
[1644939819177,0.86287754,3123.5,3123.3,1.11593566]
[1644939819476,0.86555387,3123.5,3123.4,0.49473324]
[1644939820513,0.86287754,3123.5,3123.4,0.49473324]
[1644939821617,0.86287754,3123.5,3123.3,0.62120242]
[1644939821815,0.86287754,3123.5,3123.3,1.42167242]
[1644939822015,0.86287754,3123.5,3123.4,0.49516854]
[1644939824370,0.86287754,3123.5,3123.4,0.49723744]
[1644939824571,0.86287754,3123.5,3123.4,0.49205157]
[1644939826771,0.86287754,3123.5,3123.4,0.0020689]
[1644939829518,0.86287754,3123.5,3123.3,0.62120242]
[1644939829923,1.66333754,3123.5,3123.3,0.62120242]
[1644939830120,0.86287754,3123.4,3123.3,1.42168242]
[1644939830319,0.86287754,3123.4,3123.3,1.11102792]
[1644939830524,0.86287754,3123.5,3123.3,1.11102792]
[1644939830720,0.86287754,3123.5,3123.3,0.62120242]
[1644939830920,1.66333754,3123.5,3123.3,0.62120242]
[1644939831122,0.86287754,3123.4,3123.3,1.42165242]
[1644939831323,0.86287754,3123.5,3123.3,1.11102466]
[1644939831522,0.86287754,3123.5,3123.3,0.62120242]
[1644939832576,0.86287754,3123.5,3123.4,0.4897299]
[1644939832968,0.86287754,3123.5,3123.3,1.42161242]
[1644939833168,1.66333754,3123.5,3123.3,1.42161242]
[1644939833367,0.86287754,3123.4,3123.3,0.62120242]
[1644939833568,0.86287754,3123.4,3123.3,1.11097241]
[1644939834171,1.66335754,3123.4,3123.3,1.11097241]
[1644939834872,1.66335754,3123.4,3123.3,1.11198856]
[1644939835619,0.86287754,3123.4,3123.3,1.11198856]
[1644939836016,0.86287754,3123.5,3123.3,1.91243856]
[1644939836217,0.86287754,3123.4,3123.3,0.62120242]
[1644939836414,0.86555387,3123.5,3123.3,1.11206534]
[1644939836617,0.86555387,3123.5,3123.4,0.49086292]
[1644939837217,0.86287754,3123.5,3123.4,0.49086292]
[1644939837724,1.66332754,3123.5,3123.4,0.49086292]
[1644939838720,1.66332754,3123.5,3123.3,1.42166242]
[1644939838919,0.86287754,3123.4,3123.3,0.62120242]
[1644939839119,1.66334754,3123.4,3123.3,1.11283734]
[1644939839369,1.66334754,3123.4,3123.3,1.11278676]
[1644939839567,0.86287754,3123.4,3123.3,1.11278676]
[1644939839968,0.86287754,3123.5,3123.3,1.91325676]
[1644939840168,0.86287754,3123.4,3123.3,0.62120242]
[1644939840373,0.86287754,3123.4,3123.3,1.11290537]
[1644939841268,0.86287754,3123.4,3123.3,0.62120242]
[1644939841469,0.86555387,3123.5,3123.3,1.11374862]
[1644939841667,0.80048,3123.4,3123.3,0.62120242]
[1644939841867,1.66335754,3123.4,3123.3,1.11380719]
[1644939842071,1.66335754,3123.4,3123.3,0.62120242]
[1644939842470,1.66335754,3123.4,3123.3,1.11377825]
[1644939842671,2.27295914,3123.4,3123.3,0.62120242]
[1644939842876,1.66335754,3123.4,3123.3,1.11286961]
[1644939843116,1.66335754,3123.4,3123.3,0.62019274]
[1644939843316,2.66335754,3123.4,3123.3,0.62019274]
[1644939843716,1.66335754,3123.4,3123.3,0.62019274]
[1644939843917,2.66335754,3123.4,3123.3,0.62019274]
[1644939844517,2.66335754,3123.4,3123.3,0.62329659]
[1644939844717,1.86287754,3123.4,3123.3,0.62329659]
[1644939844921,0.80074,3122.8,3122.3,2.21222741]
[1644939845120,0.86287754,3122.7,3122.4,0.4806775]
[1644939845321,0.86287754,3122.7,3122.2,0.4806775]
[1644939845322,0.462,3122.6,3122.2,0.4806775]
[1644939845525,1.34119463,3122.6,3122.3,0.4806775]
[1644939845718,0.87919463,3122.5,3122.4,0.4806775]
[1644939845917,0.87919463,3122.5,3122.2,0.4806775]
[1644939845918,2.14202573,3122.5,3122.2,0.4806775]
[1644939846117,2.02141702,3122.4,3122.3,0.4806775]
[1644939846319,2.48341702,3122.4,3122.2,0.4806775]
[1644939846516,2.48341702,3122.4,3122.3,0.4806775]
[1644939846517,1.60583971,3122.4,3122.3,0.4806775]
[1644939846782,3.28448324,3122.4,3122.3,0.4806775]
[1644939847168,3.28448324,3122.4,3122.2,0.4806775]
[1644939847367,0.87773353,3122.3,3122.2,0.4806775]
[1644939848868,2.02267773,3122.3,3122.2,0.4806775]
[1644939849469,6.9,3122.2,3122.1,0.128266]
[1644939849668,7.362,3122.2,3122.1,0.128266]
[1644939850069,0.462,3122.2,3122.1,0.128266]
[1644939854272,0.80098,3122.3,3122.1,0.128266]
[1644939854474,0.80312561,3122.3,3122.1,0.128266]
[1644939854671,0.90546199,3122.2,3122.1,0.128266]
[1644939854871,0.90546199,3122.2,3121.7,0.80087]
[1644939855071,0.80085,3122.1,3121.7,0.80087]
[1644939855475,0.80085,3122.1,3121.3,0.80095]
[1644939855671,0.80085,3122.1,3121.2,3.20367]
[1644939855876,1.80085,3122.1,3121.2,3.20367]
[1644939856672,1.80085,3122.1,3121.4,0.80093]
[1644939857272,1.80085,3122.1,3121.4,0.929221]
[1644939857673,1.80085,3122.1,3121.4,0.128291]
[1644939857875,2.6017889,3122.1,3121.4,0.128291]
[1644939858137,0.80095,3121.9,3121.4,0.128291]
[1644939860740,1.6019334,3121.9,3121.4,0.128291]
[1644939861144,0.80099,3121.8,3121.4,0.128291]
[1644939862167,0.80099,3121.8,3121.4,0.929231]
[1644939862967,0.80087,3122.0,3121.4,0.929231]
[1644939863169,0.80087,3122.0,3121.5,3.22862927]
[1644939863368,1.60397524,3122.2,3121.5,3.22862927]
[1644939863369,0.00218524,3122.2,3121.5,4.32953927]
[1644939863568,0.00070386,3122.2,3121.6,0.80071]
[1644939863773,5.0237,3122.5,3121.7,3.24378453]
[1644939863969,5.0237,3122.5,3121.5,3.85070093]
[1644939864269,0.00218791,3122.2,3121.6,0.640596]
[1644939864467,0.00218791,3122.2,3121.9,0.80077]
[1644939864867,0.00218791,3122.2,3122.0,3.20519713]
[1644939865067,1.60141,3123.0,3122.0,3.20519713]
[1644939865267,34.76749209,3122.9,3122.0,3.20519713]
[1644939865521,34.76749209,3122.9,3121.9,1.10077]
[1644939865819,0.80069,3122.7,3122.2,0.80071]
[1644939866424,0.80069,3122.7,3121.9,2.70218]
[1644939866821,1.6014759,3122.7,3121.9,2.70218]
[1644939867021,0.8007859,3122.7,3122.1,0.80079]
[1644939867222,0.80079,3122.5,3122.1,0.80079]
[1644939867621,0.8015929,3122.5,3122.1,0.80079]
[1644939868622,0.80079,3122.5,3122.1,0.80079]
[1644939868822,0.80346262,3122.5,3122.1,0.80079]
[1644939869280,0.00267262,3122.5,3122.2,3.17917509]
[1644939869475,0.00267262,3122.5,3122.3,1.25848931]
[1644939869675,0.00267262,3122.5,3122.3,0.8007]
[1644939869873,0.89377025,3122.7,3122.3,0.8007]
[1644939870075,0.00267262,3122.5,3122.3,0.8007]
[1644939870572,0.80341262,3122.5,3122.3,0.8007]
[1644939870975,0.80074,3122.5,3122.3,0.8007]
[1644939871174,0.80074,3122.5,3122.4,0.45805429]
[1644939871875,0.80074,3122.5,3122.4,0.46318237]
[1644939872278,1.60137,3123.0,3122.4,0.46318237]
[1644939872479,5.9829,3123.2,3122.4,0.46318237]
[1644939872480,0.00267262,3122.6,3122.5,0.80066]
[1644939872677,0.00267262,3122.6,3122.5,0.46318237]
[1644939873327,0.80069,3122.7,3122.5,0.46318237]
[1644939873531,0.80069,3122.7,3122.4,1.6013]
[1644939873727,0.80336262,3122.7,3122.5,0.45401064]
[1644939874528,0.80069,3122.7,3122.5,0.45401064]
[1644939875128,0.89860706,3122.6,3122.5,0.45401064]
[1644939875330,0.89860706,3122.6,3122.3,0.80077]
[1644939875534,0.80074,3122.5,3122.4,0.45418284]
[1644939876132,0.00267262,3122.6,3122.4,1.25489284]
[1644939876331,0.00267262,3122.6,3122.5,0.45418284]
[1644939876530,0.80339262,3122.6,3122.5,0.45435317]
[1644939876788,0.90163311,3122.6,3122.5,0.45435317]
[1644939876983,0.89896049,3122.6,3122.5,0.45435317]
[1644939877183,0.00267262,3122.7,3122.5,0.45435317]
[1644939877784,0.90163311,3122.7,3122.5,0.45435317]
[1644939877985,0.89896049,3122.6,3122.5,0.45435317]
[1644939878785,0.89896049,3122.6,3122.0,3.0828]
[1644939878986,0.80078,3122.4,3122.1,0.45451118]
[1644939879188,0.80078,3122.4,3122.2,0.45451118]
[1644939879392,0.80078,3122.4,3122.3,0.45451118]
[1644939879585,0.80345262,3122.4,3122.3,0.45451118]
[1644939879786,1.70312603,3122.4,3122.3,0.80077]
[1644939879986,0.90234603,3122.4,3122.3,1.25528118]
[1644939880632,0.80074,3122.5,3122.3,1.25528118]
[1644939880830,0.00267262,3122.5,3122.3,2.05602118]
[1644939881031,0.00267262,3122.5,3122.4,0.45451118]
[1644939881729,0.89984796,3122.9,3122.4,0.45451118]
[1644939881936,0.80073,3122.6,3122.4,1.25524118]
[1644939882130,0.00267262,3122.6,3122.5,0.45451118]
[1644939883030,0.90041968,3122.9,3122.5,1.25521118]
[1644939883231,0.00267262,3122.7,3122.6,0.45451118]
[1644939883431,0.9030923,3122.7,3122.6,0.45451118]
[1644939883834,0.9030923,3122.7,3122.3,1.729625]
[1644939883835,0.9030923,3122.7,3122.4,0.45451118]
[1644939884277,0.90041968,3122.6,3122.4,0.45451118]
[1644939884482,0.90041968,3122.5,3122.4,1.25522118]
[1644939884677,0.901446,3122.5,3122.4,1.25523118]
[1644939884979,0.80073,3122.6,3122.4,1.25523118]
[1644939885177,0.80073,3122.6,3122.5,0.45552009]
[1644939885383,1.70214092,3122.6,3122.5,0.45552009]
[1644939885779,1.70215206,3122.6,3122.5,0.45552009]
[1644939887383,0.90142206,3122.6,3122.5,0.45552009]
[1644939887584,0.90140055,3122.6,3122.5,3.9546657]
[1644939887787,1.1714,3123.4,3122.9,0.60467019]
[1644939888018,0.90141956,3123.3,3123.0,0.45552009]
[1644939888221,0.6119936,3123.4,3123.0,0.45552009]
[1644939888222,0.0103104,3123.2,3123.0,0.45552009]
[1644939888418,0.90141956,3123.1,3123.0,0.45552009]
[1644939889819,0.90127824,3123.1,3123.0,0.45510181]
[1644939890020,0.90127824,3123.3,3123.0,0.45510181]
[1644939890419,0.00080179,3123.2,3123.0,1.25558181]
[1644939891017,0.80136179,3123.2,3123.1,0.45521651]
[1644939891220,1.70264003,3123.2,3123.1,1.25572907]
[1644939891418,1.70183824,3123.2,3123.1,0.80058]
[1644939892280,1.70183824,3123.2,3123.1,1.25573178]
[1644939893076,1.70183824,3123.2,3123.1,0.80058]
[1644939893973,1.70183824,3123.2,3123.1,1.25566871]
[1644939894175,1.70183824,3123.2,3123.1,0.80058]
[1644939894475,1.70183824,3123.2,3123.1,1.25569164]
[1644939894986,1.70064108,3123.2,3123.1,1.25569164]
[1644939895821,1.70064108,3123.2,3123.1,0.80058]
[1644939896120,1.70064108,3123.2,3122.9,2.20591019]
[1644939896322,0.90127824,3123.1,3122.9,2.20591019]
[1644939896524,2.58812824,3123.1,3122.9,0.60467019]
[1644939896724,4.26097211,3123.0,3122.9,0.55992031]
[1644939897028,1.11702554,3122.3,3122.0,0.00454953]
[1644939897222,4.32791858,3122.2,3122.1,0.41603814]
[1644939897424,0.90127824,3122.2,3122.1,0.41603814]
[1644939897823,1.70216824,3122.2,3122.0,0.80085]
[1644939898023,0.80089,3122.2,3122.1,0.41603814]
[1644939898222,5.1438815,3122.2,3122.1,0.41603814]
[1644939898422,5.6058815,3122.2,3122.1,0.41603814]
[1644939898623,6.65450175,3122.2,3121.7,0.41603814]
[1644939898822,6.65450175,3122.2,3121.8,0.00454953]
[1644939898823,0.80096,3122.0,3121.8,0.00454953]
[1644939899024,0.9436271,3121.9,3121.8,0.00454953]
[1644939899268,0.9436271,3121.9,3121.8,0.41283996]
[1644939899571,0.9436271,3121.9,3121.8,0.00454953]
[1644939899767,0.9436271,3122.0,3121.8,0.41283996]
[1644939899970,0.9436271,3122.0,3121.9,0.41283996]
[1644939900173,1.7445471,3122.0,3121.9,0.41283996]
[1644939900570,1.7445471,3122.0,3121.8,0.41738949]
[1644939900769,1.10092,3122.0,3121.9,0.41283996]
[1644939900969,2.04429361,3122.0,3121.9,0.41283996]
[1644939902071,1.74429361,3122.0,3121.9,0.41283996]
[1644939902273,2.04429361,3122.0,3121.9,0.41283996]
[1644939903724,1.74429361,3122.0,3121.9,0.41283996]
[1644939904129,3.60715671,3122.6,3121.9,0.41283996]
[1644939904130,0.80075,3122.5,3121.9,0.41283996]
[1644939904327,0.95673059,3122.4,3122.0,0.00454953]
[1644939904624,1.12227694,3122.8,3122.1,0.41283996]
[1644939904827,0.95673482,3122.7,3122.2,0.41283996]
[1644939905024,1.85980004,3122.7,3122.2,0.41283996]
[1644939905231,0.95673482,3122.7,3122.3,0.80074]
[1644939905529,0.95673482,3122.7,3122.4,0.41283996]
[1644939905726,0.95673482,3122.6,3122.5,0.41283996]
[1644939906125,0.95673482,3123.2,3122.5,0.41283996]
[1644939906324,0.00255803,3122.9,3122.6,0.41283996]
[1644939906527,0.00255803,3122.9,3122.7,0.41283996]
[1644939906777,0.00255803,3122.9,3122.8,0.41283996]
[1644939907178,0.95673482,3123.0,3122.8,0.41283996]
[1644939907379,0.00255803,3123.0,3122.9,1.21341996]
[1644939907977,0.00255803,3123.0,3122.9,0.80058]
[1644939908182,0.95670165,3123.1,3122.9,1.20079067]
[1644939908379,0.95670165,3123.1,3122.9,0.80058]
[1644939908579,0.95925959,3123.1,3123.0,0.40021196]
[1644939908779,0.95925959,3123.1,3122.9,0.80058]
[1644939909081,0.95925959,3123.1,3123.0,0.40030742]
[1644939909381,0.95925959,3123.1,3123.0,0.40017512]
[1644939909382,0.95670165,3123.1,3123.0,0.40017512]
[1644939910387,0.95670165,3123.1,3123.0,0.40020932]
[1644939910637,0.95670165,3123.1,3122.9,0.80058]
[1644939910835,0.95670165,3123.1,3122.8,0.47233855]
[1644939911033,0.95670165,3123.1,3122.9,0.40030947]
[1644939911434,0.95670165,3123.1,3122.9,1.20088947]
[1644939911634,0.95670165,3123.1,3123.0,0.42137589]
[1644939912535,0.95670165,3123.1,3123.0,0.42139209]
[1644939914137,1.00105284,3123.1,3123.0,0.42139209]
[1644939914373,1.04540403,3123.1,3123.0,0.42139209]
[1644939914775,1.04540403,3123.1,3123.0,0.42315134]
[1644939916576,1.04540403,3123.1,3123.0,3.57697837]
[1644939916776,1.04540403,3123.1,3123.0,3.87697837]
[1644939917776,0.08870238,3123.1,3123.0,4.87697837]
[1644939918027,0.08870238,3123.1,3123.0,3.87697837]
[1644939918829,0.08870238,3123.1,3123.0,3.57697837]
[1644939919429,0.08870238,3123.1,3123.0,3.57521912]
[1644939920634,0.08870238,3123.1,3123.0,3.87521912]
[1644939920839,0.01146688,3123.6,3123.1,8.00054]
[1644939921034,0.01146688,3123.6,3123.2,4.36610447]
[1644939921235,0.01146688,3123.6,3123.3,0.42139209]
[1644939921435,0.01146688,3123.6,3123.4,3.56496126]
[1644939921635,0.01146688,3123.6,3123.5,0.42139209]
[1644939921880,0.01146688,3123.6,3123.5,4.01949643]
[1644939922378,0.01146688,3123.6,3123.5,4.31949643]
[1644939922777,0.01146688,3123.6,3123.5,5.31949643]
[1644939923381,0.01146688,3123.6,3123.5,5.26949643]
[1644939923777,0.01146688,3123.6,3123.5,6.26949643]
[1644939923978,0.01146688,3123.6,3123.5,6.4468413]
[1644939925526,0.01146688,3123.6,3123.5,6.26949643]
[1644939927125,0.01146688,3123.6,3123.5,6.16949643]
[1644939927327,0.01146688,3123.6,3123.5,6.38410955]
[1644939927641,0.00380582,3124.8,3124.1,1.4401619]
[1644939927827,0.01064242,3124.2,3124.1,5.66717004]
[1644939928227,0.01064242,3124.2,3124.1,7.38583595]
[1644939928727,0.00380582,3125.1,3124.4,0.80003]
[1644939928927,0.01064242,3124.8,3124.7,0.79998]
[1644939929129,0.94255004,3124.8,3124.7,4.41743159]
[1644939929385,0.94255004,3124.8,3124.7,4.31274285]
[1644939929591,0.8003,3125.4,3124.8,4.4]
[1644939929787,0.8003,3125.4,3125.0,0.63989]
[1644939929988,0.8003,3125.4,3125.1,3.20517658]
[1644939930188,0.8003,3125.4,3125.1,4.00499658]
[1644939930386,0.8003,3125.4,3125.1,4.02152487]
[1644939930586,0.8003,3125.4,3125.1,3.97913654]
[1644939930986,0.8003,3125.4,3125.1,4.77904654]
[1644939931192,0.8003,3125.4,3125.1,1.53672992]
[1644939931388,0.8003,3125.4,3125.1,0.89687932]
[1644939931688,0.8003,3125.4,3125.1,4.21336868]
[1644939932487,0.8003,3125.4,3125.1,0.79991]
[1644939933431,1.60033,3125.4,3125.0,0.128136]
[1644939933628,1.60033,3125.4,3124.4,1.211]
[1644939933833,1.60295775,3125.4,3124.4,1.211]
[1644939934228,1.16364699,3124.9,3124.4,1.211]
[1644939934427,3.47698845,3125.3,3124.4,1.60015]
[1644939934428,4.57703845,3125.3,3124.4,1.60015]
[1644939934628,1.10005,3125.3,3124.4,1.55015]
[1644939935033,1.10005,3125.3,3124.4,2.35027]
[1644939935034,0.00262762,3125.0,3124.4,2.35027]
[1644939935628,0.00262762,3125.0,3124.6,0.79997]
[1644939935830,0.8003,3125.4,3124.7,1.59999]
[1644939936231,0.00262766,3125.0,3124.8,0.79998]
[1644939936883,0.00262766,3125.0,3124.9,0.3]
[1644939937083,0.80006,3125.2,3124.9,0.3]
[1644939937284,0.80006,3125.2,3124.6,2.69996]
[1644939937482,0.8003,3125.4,3124.8,0.80003]
[1644939937683,0.8003,3125.4,3124.9,0.3]
[1644939937888,0.8003,3125.4,3124.8,0.80003]
[1644939938183,5.11399187,3125.4,3124.8,0.70003]
[1644939938485,5.11399187,3125.4,3125.0,0.80002]
[1644939938486,0.8003,3125.4,3125.0,0.80002]
[1644939938685,0.8003,3125.4,3125.0,0.79999]
[1644939939286,0.8003,3125.4,3125.0,1.4398605]
[1644939939685,0.8003,3125.4,3125.0,0.79999]
[1644939940524,0.8003,3125.4,3125.1,1.59976]
[1644939940824,0.80292775,3125.4,3125.1,2.39974]
[1644939941025,0.80292775,3125.4,3125.1,2.69974]
[1644939941926,0.8003,3125.4,3125.1,2.69974]
[1644939942125,0.80292775,3125.4,3125.1,2.69974]
[1644939943127,0.8003,3125.4,3125.1,2.69974]
[1644939943326,0.80292775,3125.4,3125.1,2.69974]
[1644939944390,0.00442846,3125.5,3125.2,0.79977]
[1644939944582,0.00442846,3125.5,3125.2,5.39356761]
[1644939944583,0.00262775,3125.4,3125.2,5.39356761]
[1644939944786,0.00262775,3125.4,3125.3,0.3]
[1644939945380,0.00442846,3125.5,3125.3,0.3]
[1644939945381,0.00891313,3125.6,3125.5,0.1881277]
[1644939945780,0.00891313,3125.6,3125.5,20.3081277]
[1644939945979,0.00891313,3125.6,3125.5,1.3]
[1644939946582,0.01771384,3126.0,3125.6,6.9]
[1644939946786,0.01355968,3126.2,3125.8,8.339062]
[1644939946995,0.01355968,3126.2,3125.9,5.12098832]
[1644939947184,0.01355968,3126.2,3126.1,1.0]
[1644939947380,0.01355968,3126.2,3126.1,4.46880863]
[1644939947780,0.01355968,3126.2,3126.1,4.76880863]
[1644939948065,0.0042056,3126.3,3126.2,24.1595205]
[1644939948450,0.0042056,3126.3,3126.2,3.4388205]
[1644939948649,0.0042056,3126.3,3126.2,1.4388205]
[1644939948849,0.0042056,3126.3,3126.2,1.7388205]
[1644939949048,0.0042056,3126.3,3126.2,2.7388205]
[1644939949452,5.6e-06,3126.3,3126.2,26.0588205]
[1644939949659,0.00258931,3126.5,3126.3,7.06762373]
[1644939949950,0.00258931,3126.5,3126.4,1.0]
[1644939949951,0.01100051,3126.5,3126.4,1.0]
[1644939950151,0.01100051,3126.5,3126.4,1.25]
[1644939950350,0.01100051,3126.5,3126.4,0.3]
[1644939950849,0.01100051,3126.5,3126.4,1.3]
[1644939951051,0.01892778,3126.9,3126.7,1.59873]
[1644939951252,0.04764594,3126.9,3126.8,0.3]
[1644939951452,0.04764594,3126.9,3126.7,2.93650834]
[1644939951652,0.04764594,3126.9,3126.8,0.79936]
[1644939952189,0.04764594,3126.9,3126.7,2.93650834]
[1644939952385,0.0131434,3127.0,3126.7,2.93650834]
[1644939952785,0.0131434,3127.0,3126.8,1.59876]
[1644939952983,0.0131434,3127.0,3126.9,0.6395182]
[1644939953183,0.0131434,3127.0,3126.9,0.9395182]
[1644939954691,0.0131434,3127.0,3126.9,4.23368211]
[1644939956332,0.0131434,3127.0,3126.9,5.83228211]
[1644939957132,0.0131434,3127.0,3126.9,6.13228211]
[1644939958133,0.01785152,3127.0,3126.9,6.13228211]
[1644939958534,0.01785152,3127.0,3126.9,7.13228211]
[1644939958933,0.01785152,3127.0,3126.9,8.13228211]
[1644939960181,0.01788688,3127.9,3126.9,8.13228211]
[1644939960182,0.00855499,3127.6,3127.0,6.9]
[1644939960384,0.00855499,3127.6,3127.3,19.02272228]
[1644939960582,0.00855499,3127.6,3127.4,1.0]
[1644939961080,0.01788688,3127.9,3127.4,1.3]
[1644939961281,0.01292868,3127.9,3127.5,8.5045]
[1644939961487,0.01648948,3128.0,3127.6,23.11905]
[1644939961683,0.01648948,3128.0,3127.8,1.0]
[1644939961884,1.12001978,3129.1,3128.0,6.9]
[1644939962083,1.12001978,3129.1,3128.0,11.8153297]
[1644939962283,0.0085281,3129.6,3128.6,1.0]
[1644939962489,0.89607287,3129.5,3128.6,1.3]
[1644939962686,0.89607287,3129.5,3128.5,1.0]
[1644939962884,0.89607287,3129.5,3128.3,1.5004]
[1644939965060,0.00480295,3128.9,3128.7,0.9390545]
[1644939965257,0.00480295,3128.9,3128.7,1.7379345]
[1644939965758,0.00480295,3128.9,3128.7,1.7306645]
[1644939965959,0.00221988,3128.9,3128.7,0.3]
[1644939966996,0.00221988,3128.9,3128.7,1.7379961]
[1644939967193,0.00221988,3128.9,3128.8,0.79885]
[1644939967597,0.00221988,3128.9,3128.7,4.59885]
[1644939967798,0.00443976,3128.9,3128.8,2.59754]
[1644939968193,0.00443976,3128.9,3128.8,4.3353778]
[1644939968393,0.0085281,3129.6,3129.0,0.79871]
[1644939968591,0.01007251,3129.5,3129.0,0.79871]
[1644939968794,0.01007251,3129.5,3129.2,1.0]
[1644939969093,0.01007251,3129.5,3129.2,1.3]
[1644939969293,0.01007251,3129.5,3129.2,0.3]
[1644939969491,0.01740762,3129.6,3129.2,1.89756]
[1644939969690,0.01740762,3129.6,3129.2,1.09878]
[1644939969891,0.00251851,3129.5,3129.2,2.89755]
[1644939970092,0.00251851,3129.5,3129.3,3.35681818]
[1644939970299,0.03481524,3130.4,3129.5,18.82]
[1644939970553,0.03481524,3130.4,3129.8,20.41694]
[1644939970554,0.01580304,3130.4,3129.8,20.41694]
[1644939970748,0.01580304,3130.4,3130.1,1.0]
[1644939970952,0.01580304,3130.4,3130.3,1.0]
[1644939971550,0.01580304,3130.4,3130.1,0.94820243]
[1644939971951,0.01580304,3130.4,3130.1,1.64761856]
[1644939972150,0.37228143,3131.4,3130.1,1.64761856]
[1644939972350,0.37228143,3131.4,3130.3,0.79847]
[1644939972552,0.37228143,3131.4,3130.5,20.2570536]
[1644939972749,2.54653218,3131.7,3130.9,6.25]
[1644939972953,2.54653218,3131.7,3131.3,1.0]
[1644939973550,0.00248073,3131.5,3131.2,1.0]
[1644939973750,0.00248073,3131.5,3131.3,0.79825]
[1644939973949,0.00248073,3131.5,3131.1,1.0]
[1644939974151,0.00248073,3131.5,3130.8,1.0]
[1644939974394,2.54653218,3131.7,3131.2,1.0]
[1644939974594,0.00248073,3131.5,3131.2,1.0]
[1644939974797,0.00248073,3131.5,3131.1,1.59649]
[1644939975500,2.54653218,3131.7,3130.6,0.3]
[1644939975501,3.63226442,3131.6,3130.6,0.3]
[1644939975695,3.63226442,3131.6,3130.4,2.84677]
[1644939975696,0.001,3131.5,3130.4,1.25]
[1644939975897,0.001,3131.5,3130.7,2.39536]
[1644939975898,0.00348073,3131.5,3130.7,2.39536]
[1644939976095,0.00348073,3131.5,3130.7,1.59695]
[1644939976696,0.001,3131.5,3130.7,1.59695]
[1644939977100,0.92551386,3131.1,3130.9,0.79846]
[1644939977299,0.00248073,3131.3,3130.5,1.59711]
[1644939977300,3.49690215,3131.0,3130.5,1.59711]
[1644939977502,0.001,3130.9,3130.1,1.0]
[1644939977702,1.0,3130.9,3129.5,1.0]
[1644939977900,7.43476786,3130.8,3129.4,1.0]
[1644939978153,7.43476786,3130.8,3129.8,0.79879]
[1644939978154,5.0,3130.6,3129.8,0.79879]
[1644939978351,3.501,3130.7,3129.1,1.0]
[1644939978352,1.00516394,3130.0,3129.1,1.0]
[1644939978551,0.00476786,3130.5,3128.9,0.25]
[1644939978552,0.001,3129.9,3128.9,0.25]
[1644939978851,0.00376786,3129.9,3128.7,1.0]
[1644939979049,0.79886,3130.3,3128.8,1.0]
[1644939979251,0.001,3130.5,3128.8,1.0]
[1644939979252,0.00376786,3130.2,3129.2,0.79892]
[1644939979450,0.00248026,3130.2,3129.2,0.79892]
[1644939979651,0.97463414,3130.1,3129.2,0.79892]
[1644939979850,0.79898,3129.8,3129.0,1.59781]
[1644939980051,3.69763013,3129.7,3129.0,1.59781]